Cogmind - Beta 16 @@@ ROGUE MODE // 2025.10.26 @ 13:50:05 Player: welikiq Result: Destroyed by X-62 Marksman with Pulse Rifle Performance ------------- Evolutions (2) 1000 Regions Visited (3) 600 Robots Destroyed (44) 220 Value Destroyed (1156) 1156 Prototype IDs (1) 20 Alien Tech Used (0) 0 Bonus (0) 0 TOTAL SCORE: 2996 Bonus ------- None Cogmind --------- Core Integrity 0/550 Matter 61/300 Energy 100/100 System Corruption 0% Temperature Cool (9) Movement Core (300) Ox5 Location -8/Materials Parts ------- > --- POWER (2) -------- (None) > --- PROPULSION (4) --- (None) > --- UTILITY (3) ------ Medium Storage Unit > --- WEAPON (2) ------- Flak Cannon > --- INVENTORY (10) --- Improved Ion Engine Aluminum Leg Peak State ------------ > --- POWER ------------ Improved Ion Engine Improved Ion Engine > --- PROPULSION ------- Aluminum Leg Carbon-fiber Leg Carbon-fiber Leg Carbon-fiber Leg > --- UTILITY ---------- Medium Storage Unit Sensor Array Signal Interpreter > --- WEAPON ----------- Missile Launcher Missile Launcher > --- INVENTORY -------- Aluminum Leg Ion Cannon Ion Cannon [Rating: 23] Favorites ----------- Power Improved Ion Engine Engine Improved Ion Engine Power Core Light Nuclear Core Propulsion Light Treads Treads Light Treads Leg Aluminum Leg Utility Signal Interpreter Device Sensor Array Storage Small Storage Unit Processor Signal Interpreter Weapon Medium Laser Energy Gun Medium Laser Energy Cannon Ion Cannon Ballistic Cannon Flak Cannon Launcher Rocket Launcher Special Weapon Mining Laser Build | -11 -10 -9 -8 ------- Run | Yrd Mat Mat Mat Slots Evolved 4 | . . 2 2 Power 1 | . . . 1 Propulsion 2 | . . 2 . Utility 1 | . . . 1 Weapon . | . . . . Parts Attached 39 | 7 15 11 6 Power 9 | 1 6 . 2 Engine 8 | 1 5 . 2 Core 1 | . 1 . . Reactor . | . . . . Propulsion 12 | 2 2 6 2 Treads 2 | 2 . . . Leg 10 | . 2 6 2 Wheel . | . . . . Hover . | . . . . Flight . | . . . . Utility 5 | 2 2 . 1 Device 2 | 1 1 . . Storage 2 | 1 . . 1 Processor 1 | . 1 . . Hackware . | . . . . Protection . | . . . . Artifact . | . . . . Weapon 13 | 2 5 5 1 Energy Gun 5 | 2 2 1 . Energy Cannon 2 | . . 2 . Ballistic Gun . | . . . . Ballistic Cannon 1 | . . . 1 Launcher 4 | . 2 2 . Special Weapon 1 | . 1 . . Impact Weapon . | . . . . Slashing Weapon . | . . . . Piercing Weapon . | . . . . Special Melee Weapon . | . . . . Unidentified Prototypes 1 | . . 1 . Parts Lost 16 | . 3 . 13 Power 2 | . . . 2 Propulsion 7 | . 1 . 6 Utility 3 | . 1 . 2 Weapon 4 | . 1 . 3 Highest Loss Streak 10 | . 3 . 10 To Critical Strikes . | . . . . Average Backups 2 | . 2 4 2 Power . | . 1 1 . Propulsion . | . . . 1 Utility . | . . 1 . Weapon 1 | . 1 1 1 Tool/Special . | . . . . Unused Backups 3 | . 1 1 1 Power . | . . . . Propulsion 1 | . . . 1 Utility 1 | . . 1 . Weapon 1 | . 1 . . Tool/Special . | . . . . Average Slot Usage (%) 90 | . 92 90 85 Engine 13 | . 13 11 15 Treads 11 | . 22 . . Leg 16 | . 1 35 27 Device 11 | . 12 11 8 Storage 7 | . 11 . 8 Processor 6 | . 2 11 8 Energy Gun 12 | . 25 . . Energy Cannon 3 | . . 6 10 Launcher 5 | . 2 14 3 Peak Build Rating 23 | 7 10 21 23 Average Rating 10 | 5 6 15 17 On Entrance 9 | . 7 10 21 Avg Prop Armor Cover (%) 8 | . 10 6 . Naked Turns . | . . . . Heaviest Build 37 | 13 16 20 37 Greatest Support 55 | 40 40 55 55 Greatest Overweight (x) 3 | . 3 . 1 Average Overweight (x) . | . . . . Largest Inventory Capacity 10 | 8 8 5 10 Average Capacity 7 | 7 7 5 9 Most Carried 7 | 2 7 5 5 Average Carried 3 | . 2 4 2 Final Capacity 10 | 8 5 5 10 Final Carried 5 | 1 4 5 2 Class Distribution -------------------- 94% | Mutant 5% | Scavenger-Mutant Dominant Class ---------------- Mutant | -10/Materials Mutant | -9/Materials Mutant | -8/Materials Resources | -11 -10 -9 -8 ----------- Run | Yrd Mat Mat Mat Matter Collected 958 | 270 114 373 201 Remotely . | . . . . Salvage Created 1247 | 69 486 418 274 Parts 62 | 4 28 15 15 Haulers Intercepted 4 | . 1 2 1 Recyclers Shooed 1 | . . 1 . Parts Field Recycled . | . . . . Retrieved Matter . | . . . . Parts Self-Destructed . | . . . . Prevented . | . . . . Parts Restored . | . . . . Kills | -11 -10 -9 -8 ------- Run | Yrd Mat Mat Mat Combat Hostiles Destroyed 29 | . 12 8 9 Guns 11 | . 11 . . Cannons 4 | . . 3 1 AOE 12 | . . 5 7 Classes Destroyed 9 | 1 4 3 1 Tunneler 4 | 4 . . . Hauler 4 | . 1 2 1 Recycler 2 | . . 2 . Operator 1 | . . . 1 Watcher 4 | . 2 1 1 Swarmer 6 | . 3 . 3 Grunt 19 | . 9 6 4 Duelist 1 | . . 1 . Sentry 3 | . . 1 2 Best Kill Streak 5 | 2 3 4 5 Combat Bots Only 5 | . 3 3 5 Max Kills in Single Turn 3 | 1 2 3 2 Gunslinging 1 | . 1 . . Exploded 2 | . . 2 2 Melee . | . . . . Uniques/NPCs Destroyed . | . . . . Combat | -11 -10 -9 -8 -------- Run | Yrd Mat Mat Mat Hostile Shots Fired 204 | . 58 33 113 Missed 58 | . 20 11 27 Hits 146 | . 38 22 86 Melee 4 | . . 4 . Projectile 142 | . 38 18 86 Critical Strikes 4 | . . 1 3 Damage Taken 2418 | . 511 417 1490 Core 678 | . 75 48 555 Absorbed by Shields . | . . . . Core Remaining (%) 86 | 100 70 88 . Volleys Fired 129 | 13 60 24 32 Largest 2 | 2 2 2 2 Hottest 140 | 100 140 120 120 Shots Fired 234 | 26 112 46 50 Gun 133 | 26 107 . . Cannon 63 | . . 26 37 Launcher 35 | . 2 20 13 Special 3 | . 3 . . Kinetic 3 | . . . 3 Thermal 196 | 26 110 26 34 Explosive 35 | . 2 20 13 Electromagnetic . | . . . . Robot Hit Streak 10 | 5 10 6 6 Robot Miss Streak 3 | 1 3 3 3 Penetration Max . | . . . . Secondary Targets 1 | . 1 . . Max Gunslinging Chain 1 | . 1 . . Shots Hit Robots 126 | 15 61 26 24 Core Hits 73 | 4 27 19 23 Critical Kills 1 | . . . 1 Critical Parts Destroyed . | . . . . Critical Strikes 5 | 1 3 . 1 Burn 4 | 1 3 . . Meltdown 1 | . . . 1 Melee Attacks . | . . . . Impact . | . . . . Slashing . | . . . . Piercing . | . . . . Sneak Attacks . | . . . . Combat Hostiles . | . . . . Follow-up Attacks . | . . . . Damage Inflicted 3420 | 187 847 1015 1371 Guns 949 | 187 762 . . Cannons 964 | . . 416 548 Explosions 1481 | . 81 585 815 Melee . | . . . . Ramming 26 | . 4 14 8 Kinetic 88 | . . . 88 Thermal 1825 | 187 762 416 460 Explosive 1481 | . 81 585 815 Electromagnetic . | . . . . Impact . | . . . . Slashing . | . . . . Piercing . | . . . . Highest Corruption . | . . . . Average Corruption . | . . . . Corruption Purged . | . . . . Corruption Blocked . | . . . . Overload Shots . | . . . . Overflow Damage 64 | . 18 28 18 Projectiles 19 | . . 15 4 Explosions 45 | . 18 13 14 Melee . | . . . . Knockbacks 3 | . . 1 2 Impact 1 | . . 1 . Kinetic 2 | . . . 2 Secondary . | . . . . Self-Inflicted Damage 145 | . . 70 75 Shots 4 | . . 2 2 Rammed 5 | . 5 . . Targets Rammed 12 | . 5 2 5 Kicked 7 | . . 2 5 Crushed . | . . . . Highest Temperature 522 | 122 334 522 510 Average Temperature 124 | 49 106 200 161 Received Heat Transfer 846 | . 252 90 504 Effects 20 | . 1 4 15 Shutdowns 7 | . . 2 5 Energy Bleed 1 | . . . 1 Interference 4 | . . . 4 Matter Decay 3 | . . 1 2 Short Circuit 1 | . . 1 . Damage (minor) 2 | . 1 . 1 Damage (major) 2 | . . . 2 Siege Activations . | . . . . Martial Activations . | . . . . Shielding Activations . | . . . . Robots Disrupted . | . . . . Combat Hostiles . | . . . . Robots Corrupted . | . . . . Combat Hostiles . | . . . . Parts Fried . | . . . . Impact Corruptions . | . . . . Robots Melted 2 | . 1 . 1 Combat Hostiles 2 | . 1 . 1 Parts Melted 15 | 2 7 3 3 Heat Transferred 4514 | 629 2479 666 740 Parts Sabotaged . | . . . . Parts Stolen . | . . . . Parts Stripped . | . . . . Power Chain Reactions . | . . . . Alert | -11 -10 -9 -8 ------- Run | Yrd Mat Mat Mat Maximum Alert Level 1 | . . . 1 Low Security (%) 93 | 100 100 100 64 Level 1 6 | . . . 35 Level 2 . | . . . . Level 3 . | . . . . Level 4 . | . . . . Level 5 . | . . . . High Security . | . . . . Max Security . | . . . . Peak Influence 258 | 10 80 153 258 Initial 57 | . . 1 57 Average 57 | 1 28 49 178 Influence Increases 1071 | 20 352 356 343 Destroy 0b10 Robot/C 580 | . 240 160 180 Destroy 0b10 Robot/NC 75 | 20 15 25 15 Destroy Leader 146 | . 56 36 54 Successful Hack 14 | . . 14 . Disable Machine 60 | . 15 30 15 Destroy Structure 181 | . 11 91 79 Lose Combat Pursuer 15 | . 15 . . Influence Decreases 999 | 20 348 223 408 Entered New Map 83 | . . 3 80 Time Decay 756 | 20 318 220 198 Lost Part 160 | . 30 . 130 Squads Dispatched 5 | . 1 1 3 Investigation 3 | . 1 1 1 Extermination . | . . . . Reinforcement 2 | . . . 2 Assault . | . . . . Garrison . | . . . . Intercept . | . . . . Searches Triggered . | . . . . Construction Impeded . | . . . . Haulers Reinforced . | . . . . Active Scanning Responses . | . . . . Cargo Convoy Interrupts . | . . . . Stealth | -11 -10 -9 -8 --------- Run | Yrd Mat Mat Mat Distress Signals 2 | . . 1 1 Communications Jammed . | . . . . Distress Signals . | . . . . Times Spotted 42 | . 18 10 14 Peak Tracking Total 5 | . 3 3 5 Tactical Retreats 1 | . 1 . . Traps | -11 -10 -9 -8 ------- Run | Yrd Mat Mat Mat Traps Triggered 6 | . 6 . . Indirectly . | . . . . Trap Hack Attempts . | . . . . Triggered . | . . . . Disarmed . | . . . . Reprogrammed . | . . . . Reused . | . . . . Traps Extracted . | . . . . Installed . | . . . . Triggered . | . . . . Machines | -11 -10 -9 -8 ---------- Run | Yrd Mat Mat Mat Machines Disabled 4 | . 1 2 1 Max in Single Turn 1 | . 1 1 1 Machines Repaired . | . . . . Machines Dismantled . | . . . . Machines Sabotaged . | . . . . Overloaded Fab Kills . | . . . . Hacking | -11 -10 -9 -8 --------- Run | Yrd Mat Mat Mat Machines Accessed 7 | . 4 2 1 Terminals 4 | . 2 2 . Fabricators . | . . . . Repair Stations 1 | . . . 1 Recycling Units 2 | . 2 . . Scanalyzers . | . . . . Garrison Access . | . . . . Total Hacks 17 | . 8 6 3 Successful 10 | . 5 4 1 Failed 7 | . 3 2 2 Catastrophic . | . . . . Database Lockouts . | . . . . Manual . | . . . . Terminals 10 | . 4 6 . Fabricators . | . . . . Repair Stations 3 | . . . 3 Recycling Units 4 | . 4 . . Scanalyzers . | . . . . Garrison Access . | . . . . Terminal Hacks 5 | . 1 4 . Record 1 | . 1 . . Alert Level 1 | . . 1 . Locate Traps 1 | . . 1 . Hauler Manifests 1 | . . 1 . Zone Layout 1 | . . 1 . Fabricator Hacks . | . . . . Repair Station Hacks 1 | . . . 1 Scan Component 1 | . . . 1 Recycling Unit Hacks 4 | . 4 . . Process 1 | . 1 . . Report Inventory 1 | . 1 . . Retrieve Components 2 | . 2 . . Scanalyzer . | . . . . Garrison Access Hacks . | . . . . Unauthorized Hacks . | . . . . Terminals . | . . . . Fabricators . | . . . . Repair Stations . | . . . . Recycling Units . | . . . . Scanalyzers . | . . . . Garrison Access . | . . . . Data Cores Recovered . | . . . . Used . | . . . . Hacking Detections 6 | . 3 2 1 Full Trace Events 2 | . . 1 1 Feedback Events . | . . . . Feedback Blocked . | . . . . Robot Schematics Acquired . | . . . . Robots Built . | . . . . Authchips . | . . . . Time . | . . . . Total Robot Build Rating . | . . . . Part Schematics Acquired . | . . . . Parts Built . | . . . . Authchips . | . . . . Time . | . . . . Total Part Build Rating . | . . . . Part Studies Acquired . | . . . . Parts Repaired . | . . . . Time . | . . . . Parts Recycled . | . . . . Recycled Matter . | . . . . Retrieved Matter . | . . . . Retrieved Components 19 | . 19 . . Parts Scanalyzed . | . . . . Part Schematics Acquired . | . . . . Parts Damaged . | . . . . Bothacking | -11 -10 -9 -8 ------------ Run | Yrd Mat Mat Mat Used RIF Installer . | . . . . Robots Hacked . | . . . . Non-combat . | . . . . Combat . | . . . . Robot Hacks Applied . | . . . . Relay Couplers Released . | . . . . Fabnet Peak Effective % . | . . . . Robots Rewired . | . . . . Allies Hacked . | . . . . Hacks Repelled . | . . . . Allies | -11 -10 -9 -8 -------- Run | Yrd Mat Mat Mat Total Allies . | . . . . Largest Group . | . . . . Highest-Rated Group . | . . . . Highest-Rated Ally . | . . . . Total Orders . | . . . . Ally Attacks . | . . . . Total Damage . | . . . . Kills . | . . . . Allies Corrupted . | . . . . Allies Melted . | . . . . Intel | -11 -10 -9 -8 ------- Run | Yrd Mat Mat Mat Active Infowar (turns) 2047 | 120 949 623 355 Sensors 1188 | . 210 623 355 Seismic 859 | 120 739 . . Robot Analysis Total . | . . . . Derelict Logs Recovered . | . . . . Drone Launches . | . . . . Drone Recoveries . | . . . . Exploration | -11 -10 -9 -8 ------------- Run | Yrd Mat Mat Mat Turns Passed 2378 | 235 1103 623 417 Spaces Moved 1211 | 117 524 390 180 Core 6 | 3 3 . . Treads 597 | 114 483 . . Legs 608 | . 38 390 180 Wheels . | . . . . Hover . | . . . . Flight . | . . . . Fastest Speed 50 | 50 100 120 120 Average Speed 141 | 157 158 120 132 Slowest Speed 200 | 160 200 120 190 Overloaded Moves . | . . . . Propulsion Burnouts . | . . . . Robots Hopped . | . . . . Potential Cave-ins . | . . . . Cave-ins Triggered . | . . . . Exploration Rate (%) 26 | 7 54 27 18 Regions Visited 3 Branch Regions . Pre-discovered Areas . | . . . . Known Exits Taken 2 | . 1 1 . Unknown Exits Taken 1 | 1 . . . Scrap Searched . | . . . . Spaces Dug . | . . . . Terrain Destroyed 223 | . 8 108 107 Melee . | . . . . Projectile 8 | . . 2 6 AOE 215 | . 8 106 101 Terrain Rammed . | . . . . Walls Destroyed . | . . . . Machines Disabled . | . . . . Actions | -11 -10 -9 -8 --------- Run | Yrd Mat Mat Mat Total 1600 | 139 671 498 292 Wait 148 | 1 43 47 57 Move 1208 | 116 523 389 180 Hop . | . . . . Pick Up 15 | 2 7 6 . Fast Attach 22 | 6 11 3 2 Attach 6 | 1 1 . 4 Detach . | . . . . Swap 37 | . 11 14 12 Drop 23 | . 10 13 . Fire 129 | 13 60 24 32 Melee . | . . . . Ram . | . . . . Kick 7 | . . 2 5 Crush 5 | . 5 . . Escape Stasis . | . . . . Rewire . | . . . . Trap . | . . . . Miscellaneous . | . . . . Route ------- -11/Scrapyard -10/Materials (discovered 4 exits: *Mat x2 / [*Min] / [*Sub]) -9/Materials (discovered 2 exits: *Mat / [*Min]) -8/Materials History --------- Turn | Location | Event 11 | -11/Scrapyard | Discovered new exit (range 16) 236 | -11/Scrapyard | Entered Materials 313 | -10/Materials | Build established: Mutant 462 | -10/Materials | Discovered new exit (range 13) 664 | -10/Materials | Discovered new exit (range 11) 837 | -10/Materials | Discovered new exit (range 5) 1006 | -10/Materials | Lost 3 parts (1n1u1w) 1021 | -10/Materials | Discovered new exit (range 6) 1209 | -10/Materials | Identified exit to Materials 1339 | -10/Materials | Entered another Materials area 1339 | -9/Materials | Evolved 2 slots: Propulsion x2 1629 | -9/Materials | Discovered new exit (range 15) 1930 | -9/Materials | Discovered new exit (range 15) 1954 | -9/Materials | Identified exit to Materials 1962 | -9/Materials | Entered another Materials area 1962 | -8/Materials | Evolved 2 slots: Power x1, Utility x1 2340 | -8/Materials | Core integrity fell below 50% 2368 | -8/Materials | Core integrity fell below 20% 2379 | -8/Materials | Destroyed by X-62 Marksman with Pulse Rifle Last Messages --------------- 02346_ Slug penetrates Wall. 02346_ U-05 Engineer lays Concrete. 02348_ U-05 Engineer builds a Wall. 02348_ Penetrated by Slug. 02348_ Aluminum Leg destroyed. 02348_ U-05 Engineer builds a Wall. 02349_ Penetrated by Slug. 02352_ Signal Interpreter destroyed. 02352_ U-05 Engineer lays Concrete. 02354_ Penetrated by Slug. 02354_ U-05 Engineer lays Concrete. 02355_ Penetrated by Slug. 02355_ X-62 Marksman destroyed. 02356_ U-05 Engineer lays Concrete. 02358_ Penetrated by Slug. 02359_ U-05 Engineer lays Concrete. 02361_ Slug penetrates Wall. 02361_ Critical hit (Burn: +37). 02361_ U-05 Engineer lays Concrete. 02373_ Penetrated by Slug. Map ----- +----------------------------------------------------+ | ?????????????????????????????????????????????? | | ?????????????????????????????????????????????? | | ?????????????????????????????????????????????? | | ?????????????????????????????????????????????? | | ?????????????????????????????????????????????? | | ?????????????????????????????????????????????? | | ?????????????????????????????????????????????? | | ?????????????????????????????????????????????? | | ?????????????????????????????????????????????? | | ?????????????????????????????????????????????? | | ???????????????????????####??????????????????? | | ?????????????????????# ??????????????????? | | ?????????????????????# ??????????????????? | | ?????????????????????# ?????H????????????? | | ????????????????????? u ??????????????????? | | ?????????????????????# = ??#???????????????? | | ????????????????????### ?? ??????????????? | | ????????????????????? # #? """"????????????? | | ????????????????????? # #? """?????????????? | | ??????????????????????+ #? ""??????????????? | | ??????????????????????# #? ??????????????? | | ??????????????????????# #? ???????????????? | | ??????????????????????# ##/#######?????????? | | ??????????????????????# ! #! #?????????? | | ??????????????????????# %!# #?????????? | | ??????????????????????# @# #?????????? | | ??????????????????????# x #?????????? | | ??????????????????????# # "" #?????????? | | ??????????????????????# # """" #?????????? | | ??????????????????????# # " """ #?????????? | | ????????????? ????????# # """"" #?????????? | | ???????????# ????????# o# """ #?????????? | | ???????????# ???????# ########?#?????????? | | ???????????# ######## #??????????????????? | | ???????????# #??????????????????? | | ???????????# ^ #??????????????????? | | ???????????+ ^ #??????????????????? | | ???????????# ! #??????????????????? | | ???????????# ^ ###????????????????? | | ?#????????## ^ ##????????????????? | | ? ??????# """ # ##############???? | | ? ?###### """ # ] + #???? | | # ?+ """ # #### #???? | | ??????# # #??# #???? | | ???????# [ # """ """ #??# #???? | | # ???????############# # """ """ #??# #???? | | ???????????????# # # """ """ #??# #???? | | ??????########??## #[[[/ #??###???? | | ??????#!!!!//##??## #[ [# #????????? | | #??????#!!!!// ##### #*[[# ######+##????????? | +----------------------------------------------------+ Best States ------------- Heat Dissipation 31 Energy Generation 19 Energy Capacity 430 Matter Stores 300 Matter Capacity 300 Sight Range 16 Robot Scan Range 14 Terrain Scan Density 10 Evasion (%) 55 Recoil Reduction 2 Item Schematics ----------------- None Robot Schematics ------------------ None Fabricated ------------ Nothing Repaired ---------- Nothing Studied --------- None Alien Tech Used ----------------- None Achievements -------------- Ghost 'Em Challenges ------------ None Game ------ Seed BoltAnalysisPrototype Manual? 0 Play Time 00:27:35 Cumulative 10.3 hours Start 2025.10.26 @ 13:23:21 End 2025.10.26 @ 13:50:05 Sessions 1 Manual Loads 0 Difficulty Rogue Special Mode None Game No. 27 Rogue 27 Adventurer 0 Explorer 0 Win Type - Total 0 Types 0/0/0/0/0/0/0/0/0/0 Lore% 3 Gallery% 10 Achievement% 9 Wizard Run 0 Options --------- Layout 0 ASCII 0 Keyboard 1 Movement Arrows Keybinds 0 Fullscreen 1 Font 24/Smallcaps Map View 76x50 Zoom Use 46% Tactical HUD 1 Map Filters NONE Filters NONE Steam 1 RUN: 9ba6d5fe-e2f5-48eb-9692-e43dfe203f72